bitfinex/quotes_SOLUSD_20250717
["timestamp","ask_amount","ask_price","bid_price","bid_amount"]
[1752749330028,35.49346168,176.26,176.23,17.265912]
[1752749330229,35.49346168,176.26,176.24,8.42187505]
[1752749330815,6.38346168,176.26,176.23,25.00778705]
[1752749331021,36.20346168,176.26,176.23,21.85311201]
[1752749332342,29.82,176.26,176.24,5.94720001]
[1752749332650,5.67225981,176.3,176.25,5.94720001]
[1752749332831,5.67185843,176.31,176.28,5.26720001]
[1752749333152,29.82,176.3,176.29,5.26720001]
[1752749334031,29.82,176.3,176.29,0.68]
[1752749334236,29.82,176.3,176.29,5.94720001]
[1752749334636,29.82,176.3,176.29,5.26720001]
[1752749334834,29.82,176.3,176.29,5.94720001]
[1752749335031,29.82,176.3,176.25,5.67364181]
[1752749335032,29.82,176.3,176.28,5.26720001]
[1752749335434,35.49218925,176.3,176.28,5.26720001]
[1752749335643,36.20218925,176.3,176.28,5.26720001]
[1752749335940,36.20218925,176.3,176.27,5.26720001]
[1752749336336,0.71,176.29,176.26,5.26720001]
[1752749336536,29.8,176.28,176.26,5.26720001]
[1752749336745,29.8,176.28,176.23,24.762312]
[1752749336746,0.71,176.27,176.23,21.85311201]
[1752749336927,29.8,176.26,176.23,21.85311201]
[1752749337552,29.8,176.26,176.24,5.26720001]
[1752749337851,0.71,176.25,176.23,16.585912]
[1752749338054,55.8,176.24,176.23,16.585912]
[1752749338252,78.25876476,176.24,176.23,16.585912]
[1752749338455,84.23596477,176.24,176.23,16.585912]
[1752749340574,26.0,176.21,176.2,0.03]
[1752749340863,26.0,176.15,176.14,0.03]
[1752749341070,26.0,176.13,176.07,30.03]
[1752749341239,81.02845773,176.13,176.07,30.03]
[1752749341435,81.73845773,176.13,176.07,30.03]
[1752749341634,73.29468397,176.13,176.07,30.03]
[1752749341942,81.73845773,176.13,176.07,0.03]
[1752749342341,8.44377376,176.08,176.07,0.03]
[1752749342544,0.71,176.14,176.07,8.47377376]
[1752749342751,26.0,176.14,176.1,8.44377376]
[1752749343056,29.8,176.13,176.11,0.68]
[1752749343253,29.8,176.13,176.11,9.12377376]
[1752749343457,6.38602417,176.18,176.12,9.12377376]
[1752749343752,29.8,176.17,176.12,9.12377376]
[1752749343952,38.24377376,176.17,176.12,9.12377376]
[1752749344152,38.95377376,176.17,176.12,9.12377376]
[1752749344542,5.67665758,176.16,176.12,9.12377376]
[1752749344741,26.0,176.18,176.13,8.44377376]
[1752749344742,29.8,176.15,176.13,8.44377376]
[1752749344934,29.8,176.15,176.14,9.12377376]
[1752749346255,29.8,176.17,176.14,9.12377376]
[1752749346438,29.8,176.17,176.16,8.44377376]
[1752749347347,29.8,176.17,176.16,9.16377376]
[1752749347761,29.8,176.17,176.16,14.84043134]
[1752749348069,29.8,176.17,176.16,9.16377376]
[1752749348966,29.8,176.17,176.16,14.84043134]
[1752749349265,5.67481285,176.22,176.16,14.84043134]
[1752749349465,29.8,176.21,176.19,8.44377376]
[1752749349640,29.8,176.21,176.2,8.44377376]
[1752749349959,29.8,176.21,176.19,9.16377376]
[1752749350745,29.8,176.21,176.2,9.16377376]
[1752749352345,34.44377376,176.27,176.2,9.16377376]
[1752749352548,0.67,176.3,176.21,0.72]
[1752749352758,35.4725487,176.29,176.25,8.44377376]
[1752749353768,0.67,176.28,176.24,8.44377376]
[1752749354341,9.11377376,176.27,176.22,8.44377376]
[1752749354567,29.8,176.26,176.23,8.44377376]
[1752749354748,29.8,176.26,176.24,8.44377376]
[1752749355461,29.8,176.26,176.25,8.44377376]
[1752749355860,29.8,176.26,176.25,9.16377376]
[1752749356164,26.73,176.31,176.25,9.16377376]
[1752749356165,29.8,176.28,176.25,9.16377376]
[1752749356370,29.8,176.29,176.27,8.44377376]
[1752749356563,29.8,176.29,176.28,8.44377376]
[1752749358847,29.8,176.29,176.26,0.72]
[1752749359170,29.8,176.29,176.27,8.44377376]
[1752749359557,29.8,176.29,176.28,9.16377376]
[1752749360051,29.8,176.3,176.28,9.16377376]
[1752749360364,29.8,176.3,176.29,9.16377376]
[1752749361568,0.06,176.31,176.29,9.16377376]
[1752749362570,0.06,176.31,176.3,8.44377376]
[1752749362971,6.40182803,176.31,176.26,0.72]
[1752749363151,0.67,176.3,176.27,8.44377376]
[1752749363350,29.8,176.29,176.27,8.44377376]
[1752749364070,29.8,176.29,176.28,9.16377376]
[1752749365070,30.47,176.29,176.24,0.72]
[1752749365263,0.67,176.28,176.25,8.44377376]
[1752749365459,29.8,176.29,176.25,8.44377376]
[1752749365961,29.8,176.29,176.25,9.16377376]
[1752749366167,35.47250982,176.29,176.25,9.16377376]
[1752749366363,0.67,176.28,176.23,0.72]
[1752749366569,0.67,176.28,176.24,8.44377376]
[1752749366760,0.67,176.27,176.23,8.44377376]
[1752749366961,29.78,176.26,176.24,8.44377376]
[1752749367354,29.78,176.26,176.25,9.16377376]
[1752749368365,29.78,176.26,176.25,8.44377376]
[1752749368778,29.78,176.26,176.22,5.67461913]
[1752749368951,29.78,176.26,176.25,9.16377376]
[1752749369564,29.78,176.28,176.25,9.16377376]
[1752749369764,29.78,176.28,176.27,8.44377376]
[1752749370865,0.06,176.31,176.27,9.16377376]
[1752749371070,29.84,176.31,176.3,8.44377376]
[1752749372869,29.84,176.31,176.28,0.72]
[1752749373189,29.84,176.31,176.3,8.44377376]
[1752749373573,35.51193655,176.31,176.29,8.44377376]
[1752749373867,35.51193655,176.31,176.24,0.72]
[1752749373868,0.67,176.3,176.24,0.72]
[1752749374069,0.67,176.3,176.26,8.44377376]
[1752749374281,0.67,176.29,176.26,8.44377376]
[1752749374467,29.78,176.28,176.26,8.44377376]
[1752749375476,29.78,176.28,176.26,9.16377376]
[1752749375894,29.78,176.28,176.27,8.44377376]
[1752749376765,29.78,176.28,176.27,9.16377376]
[1752749376967,29.78,176.28,176.27,8.44377376]
[1752749377167,0.06,176.31,176.27,8.44377376]
[1752749377168,0.06,176.31,176.27,9.12377376]
[1752749377406,0.06,176.31,176.22,16.78468397]
[1752749377407,29.78,176.3,176.28,0.68]
[1752749377695,29.78,176.3,176.29,0.68]
[1752749378789,29.78,176.3,176.29,9.12377376]
[1752749382077,0.06,176.31,176.29,14.79624525]
[1752749382284,0.06,176.31,176.3,8.44377376]
[1752749383198,0.06,176.31,176.3,9.12377376]
[1752749383763,0.06,176.31,176.3,14.7959235]
[1752749384980,0.06,176.31,176.3,9.12377376]
[1752749387789,0.06,176.31,176.3,14.7959235]
[1752749388511,0.06,176.31,176.3,9.12377376]
[1752749388693,0.06,176.31,176.26,0.68]
[1752749388901,0.72,176.31,176.27,0.68]
[1752749389212,5.92326595,176.3,176.25,5.26326595]
[1752749389382,29.82,176.31,176.26,5.26326595]
[1752749389383,0.66,176.29,176.26,5.26326595]
[1752749389723,29.76,176.28,176.25,5.26326595]
[1752749390002,29.76,176.28,176.22,5.26326595]
[1752749390003,0.66,176.27,176.22,5.26326595]
[1752749390188,0.66,176.26,176.22,5.26326595]
[1752749390505,29.76,176.25,176.22,5.26326595]
[1752749390796,0.66,176.24,176.2,5.26326595]
[1752749391101,0.66,176.23,176.19,8.42999562]
[1752749391279,29.76,176.22,176.19,8.42999562]
[1752749391473,29.76,176.22,176.15,8.0442]
[1752749391779,5.67504681,176.21,176.18,8.42999562]
[1752749392906,0.66,176.2,176.14,0.68]
[1752749393204,0.66,176.2,176.16,8.42999562]
[1752749393385,29.76,176.19,176.15,8.42999562]
[1752749393580,30.42,176.19,176.15,8.42999562]
[1752749393809,36.09596555,176.19,176.16,8.42999562]
[1752749394110,36.09596555,176.19,176.15,9.10999562]
[1752749394281,36.09596555,176.19,176.15,0.68]
[1752749394480,36.09596555,176.19,176.15,9.10999562]
[1752749395729,35.43596555,176.19,176.16,8.42999562]
[1752749396038,0.66,176.18,176.14,8.42999562]
[1752749396328,0.66,176.17,176.13,8.42999562]
[1752749396531,29.76,176.16,176.13,9.10999562]
[1752749397028,29.76,176.16,176.13,8.42999562]
[1752749397639,29.76,176.16,176.14,8.42999562]
[1752749397808,29.76,176.16,176.13,0.68]
[1752749397809,29.76,176.16,176.15,9.10999562]
[1752749397999,5.67639645,176.17,176.14,8.42999562]
[1752749398318,29.76,176.17,176.15,8.42999562]
[1752749398520,0.66,176.21,176.16,9.10999562]
[1752749398696,1.5487,176.23,176.19,8.42999562]
[1752749398697,29.76,176.2,176.19,8.42999562]
[1752749399098,29.76,176.2,176.19,9.10999562]
[1752749399420,35.43449541,176.23,176.19,9.10999562]
[1752749399599,35.43449541,176.23,176.21,8.42999562]
[1752749400108,35.43449541,176.23,176.2,8.42999562]
[1752749400311,0.66,176.22,176.18,8.42999562]
[1752749400706,0.66,176.22,176.16,0.68]
[1752749400912,0.66,176.22,176.18,8.42999562]
[1752749401510,9.08999562,176.21,176.13,0.68]
[1752749401821,5.67627291,176.18,176.12,0.03]
[1752749402126,29.76,176.17,176.13,8.42999562]
[1752749402307,29.76,176.17,176.13,9.10999562]
[1752749402509,29.76,176.17,176.14,8.42999562]
[1752749402923,30.42,176.17,176.13,8.42999562]
[1752749403321,0.66,176.17,176.13,8.42999562]
[1752749403724,29.76,176.16,176.13,8.42999562]
[1752749403917,35.43665758,176.16,176.12,0.03]
[1752749404111,29.76,176.16,176.14,8.42999562]
[1752749405010,5.67636739,176.17,176.14,8.42999562]
[1752749405219,29.76,176.18,176.16,8.42999562]
[1752749405423,29.76,176.18,176.15,8.42999562]
[1752749406126,35.43608147,176.18,176.15,8.42999562]
[1752749407004,0.7,176.17,176.12,0.03]
[1752749407206,0.7,176.16,176.13,8.42999562]
[1752749407406,36.13608147,176.18,176.13,8.42999562]
[1752749407605,0.7,176.17,176.13,8.42999562]
[1752749407824,35.43608147,176.18,176.14,8.42999562]
[1752749408024,35.43608147,176.18,176.14,9.08999562]
[1752749408222,35.43608147,176.18,176.15,8.42999562]
[1752749408632,35.43608147,176.18,176.16,8.42999562]
[1752749408932,35.43608147,176.18,176.15,8.42999562]
[1752749409325,35.43608147,176.18,176.15,9.08999562]
[1752749409526,5.67504681,176.21,176.17,8.42999562]
[1752749409726,5.67440276,176.23,176.2,8.42999562]
[1752749410041,29.76,176.22,176.18,0.66]
[1752749410339,29.76,176.22,176.2,8.42999562]
[1752749410537,35.43476338,176.22,176.2,8.42999562]
[1752749412617,29.76,176.22,176.2,8.42999562]
[1752749412917,35.43476908,176.22,176.2,8.42999562]
[1752749414022,29.76,176.22,176.21,9.08999562]
[1752749414520,5.67368154,176.26,176.21,9.08999562]
[1752749414729,5.67368154,176.26,176.25,8.42999562]
[1752749414932,5.67368154,176.26,176.22,8.42999562]
[1752749414933,29.76,176.25,176.22,8.42999562]
[1752749415119,30.46,176.25,176.22,8.42999562]
[1752749415320,29.76,176.25,176.22,8.42999562]
[1752749415525,30.46,176.25,176.22,8.42999562]
[1752749415723,29.76,176.25,176.21,8.42999562]
[1752749415934,0.7,176.24,176.2,8.42999562]
[1752749416117,6.3743505,176.24,176.2,8.42999562]
[1752749418144,6.3743505,176.24,176.21,8.42999562]
[1752749418540,5.6743505,176.24,176.23,8.42999562]
[1752749418719,35.43386045,176.25,176.23,8.42999562]
[1752749419042,0.7,176.24,176.2,8.42999562]
[1752749419244,0.7,176.23,176.2,8.42999562]
[1752749419420,29.74,176.22,176.2,8.42999562]
[1752749419621,29.74,176.22,176.19,8.42999562]
[1752749419822,0.7,176.21,176.18,8.42999562]
[1752749420024,0.7,176.2,176.17,8.42999562]
[1752749420225,5.67504681,176.21,176.17,9.08999562]
[1752749420523,5.67504681,176.21,176.18,8.42999562]
[1752749420736,5.67504681,176.21,176.18,9.08999562]
[1752749422046,5.67504681,176.21,176.18,8.42999562]
[1752749422926,0.7,176.2,176.13,118.5]
[1752749423129,29.74,176.19,176.15,5.27082484]
[1752749423435,30.44,176.19,176.15,5.27082484]
[1752749424143,5.67601316,176.18,176.15,5.27082484]
[1752749424924,5.67601316,176.18,176.13,88.76]
[1752749425124,5.67601316,176.18,176.15,5.27082484]
[1752749425343,5.97082484,176.17,176.12,5.30082484]
[1752749425640,30.44,176.16,176.12,5.30082484]
[1752749426041,5.67697984,176.15,176.12,0.03]
[1752749426231,6.37697984,176.15,176.12,5.30082484]
[1752749426426,5.67697984,176.15,176.12,5.30082484]
[1752749426637,5.67697984,176.15,176.12,5.96082484]
[1752749427139,5.67697984,176.15,176.12,5.30082484]
[1752749427738,5.67697984,176.15,176.12,0.03]
[1752749427945,5.67697984,176.15,176.12,5.30082484]
[1752749429531,0.7,176.14,176.12,0.03]
[1752749429727,29.74,176.13,176.12,0.03]
[1752749430748,35.41762448,176.13,176.12,0.03]
[1752749430947,29.74,176.13,176.12,0.03]
[1752749432425,14.18981941,176.19,176.12,5.96082484]
[1752749432625,35.41601316,176.18,176.15,5.27082484]
[1752749433062,29.74,176.18,176.15,5.93082484]
[1752749433270,5.67536889,176.2,176.17,5.27082484]
[1752749433449,5.67472477,176.22,176.19,5.27082484]
[1752749433649,29.74,176.21,176.17,0.66]
[1752749433864,0.7,176.2,176.17,5.27082484]
[1752749434852,6.37569101,176.19,176.15,5.27082484]
[1752749435177,30.44,176.18,176.14,5.27082484]
[1752749435467,0.7,176.17,176.13,5.27082484]
[1752749435677,0.7,176.17,176.14,5.27082484]
[1752749436857,5.67665758,176.16,176.14,5.27082484]
[1752749437057,29.74,176.15,176.14,5.27082484]
[1752749437743,29.74,176.15,176.12,0.03]
[1752749437954,29.74,176.15,176.12,5.98082484]
[1752749438557,29.74,176.15,176.13,5.27082484]
[1752749438869,29.74,176.15,176.13,5.95082484]
[1752749439647,35.41700136,176.15,176.12,5.30082484]
[1752749440053,35.41700136,176.15,176.12,5.98082484]
[1752749440650,29.74,176.15,176.13,5.27082484]
[1752749440975,29.74,176.15,176.13,5.95082484]
[1752749441478,35.41698881,176.15,176.12,5.30082484]
[1752749441850,35.41698881,176.15,176.12,0.03]
[1752749442059,36.11698881,176.15,176.12,0.03]
[1752749442261,35.41698881,176.15,176.12,0.03]
[1752749442560,36.11698881,176.15,176.12,0.03]
[1752749443088,0.7,176.14,176.12,0.03]
[1752749443392,35.39762448,176.13,176.12,0.03]
[1752749443688,40.66844932,176.13,176.12,0.03]
[1752749443863,58.15313329,176.13,176.12,0.03]
[1752749444064,5.27082484,176.11,176.07,0.03]
[1752749444318,29.72,176.1,176.07,0.03]
[1752749444654,0.7,176.09,176.07,0.03]
[1752749444961,5.27082484,176.11,176.07,0.03]
[1752749444962,29.72,176.08,176.07,0.03]
[1752749445953,36.09923671,176.08,176.07,0.03]
[1752749446252,29.72,176.08,176.07,0.03]
[1752749446462,0.7,176.13,176.07,5.98082484]
[1752749446665,60.99082484,176.12,176.07,5.30082484]
[1752749446869,0.7,176.11,176.07,0.03]
[1752749447079,29.72,176.1,176.07,0.03]
[1752749447371,35.69082484,176.1,176.07,0.03]
[1752749447573,5.67891419,176.09,176.07,0.03]
[1752749447882,29.72,176.08,176.07,0.03]
[1752749448587,30.42,176.08,176.07,0.03]
[1752749448963,29.72,176.08,176.07,0.03]
[1752749449575,36.09923671,176.08,176.07,0.03]
[1752749449763,41.37006155,176.08,176.07,0.03]
[1752749450282,58.15474552,176.08,176.07,0.03]
[1752749451883,0.1229388,176.07,176.06,0.2]
[1752749452089,6.09376364,176.07,176.06,0.2]
[1752749452294,6.09376364,176.07,176.06,1e-08]
[1752749452295,22.87844761,176.07,176.06,1e-08]
[1752749452665,42.78468397,176.05,176.02,0.2]
[1752749452866,22.05550881,176.03,176.02,0.2]
[1752749453399,22.75550881,176.03,176.02,0.2]
[1752749453694,17.48468397,176.03,176.02,0.2]
[1752749453900,28.43635866,176.03,176.02,0.2]
[1752749454686,16.78468397,176.02,175.99,0.03]
[1752749454892,5.27082484,176.0,175.99,0.03]
[1752749455257,5.97082484,176.0,175.99,0.03]
[1752749455909,11.65264302,176.0,175.99,0.03]
[1752749457010,5.68181818,176.0,175.99,0.03]
[1752749457295,11.65264302,176.0,175.99,0.03]
[1752749459067,28.43732699,176.0,175.99,0.03]
[1752749459967,5.68181818,176.0,175.99,0.03]
[1752749460190,29.72,176.0,175.99,0.03]
[1752749460399,35.69082484,176.0,175.99,0.03]
[1752749461170,29.72,176.0,175.99,0.03]
[1752749461491,52.47550881,176.0,175.99,0.03]
[1752749462078,58.15732699,176.0,175.99,0.03]
[1752749462376,36.10181818,176.0,175.99,0.03]
[1752749462593,35.40181818,176.0,175.99,0.03]
[1752749463173,41.37264302,176.0,175.99,0.03]
[1752749463381,58.15732699,176.0,175.99,0.03]
[1752749463972,35.40181818,176.0,175.99,0.03]
[1752749464683,29.72,176.0,175.99,0.71]
[1752749464891,29.72,176.0,175.99,5.98082484]
[1752749465798,5.68051718,176.05,175.99,5.98082484]
[1752749466090,5.68051718,176.05,176.03,5.27082484]
[1752749466294,29.72,176.04,176.03,5.27082484]
[1752749466596,35.40057769,176.04,176.02,5.95082484]
[1752749466813,35.40057769,176.04,176.02,5.27082484]
[1752749466994,35.40057769,176.04,176.0,0.68]
[1752749467199,40.67140253,176.04,175.99,5.30082484]
[1752749467498,0.72,176.03,175.99,5.30082484]
[1752749467792,29.72,176.02,175.99,5.30082484]
[1752749467992,29.72,176.02,175.99,5.98082484]
[1752749468407,5.68149536,176.01,175.99,0.03]
[1752749468698,29.72,176.0,175.99,0.03]
[1752749469072,29.72,176.0,175.99,5.98082484]
[1752749471686,5.68122011,176.02,175.99,5.98082484]
[1752749471886,29.72,176.01,175.99,5.98082484]
[1752749474205,35.40151136,176.01,175.99,5.98082484]
[1752749475118,35.40151136,176.01,175.99,0.03]
[1752749475411,0.72,176.0,175.99,0.03]
[1752749476709,40.6723362,176.01,175.99,0.03]
[1752749477029,35.40151136,176.01,175.99,0.03]
[1752749477327,36.12151136,176.01,175.99,0.03]
[1752749478085,41.3923362,176.01,175.99,0.03]
[1752749479013,5.99082484,176.0,175.99,0.03]
[1752749479397,35.40151136,176.01,175.99,0.03]
[1752749479398,40.6723362,176.01,175.99,0.03]
[1752749479598,35.40151136,176.01,175.99,0.03]
[1752749480000,35.40151136,176.01,175.99,0.71]
[1752749480207,5.68084985,176.03,176.0,0.68]
[1752749480415,29.7,176.02,176.0,0.68]
[1752749480716,29.7,176.02,176.01,5.95082484]
[1752749481100,29.76,176.04,176.01,5.95082484]
[1752749481401,29.76,176.04,176.03,5.27082484]
[1752749481594,29.76,176.04,176.03,5.95082484]
[1752749482112,35.44056523,176.04,176.02,5.27082484]
[1752749482315,29.76,176.04,176.02,5.95082484]
[1752749482803,35.44056292,176.04,176.02,5.95082484]
[1752749482999,35.44056292,176.04,175.99,0.71]
[1752749483208,35.44056292,176.04,176.0,0.68]
[1752749483414,35.44056292,176.04,176.01,0.68]
[1752749483809,35.44056292,176.04,176.02,0.68]
[1752749484125,29.76,176.04,176.02,5.95082484]
[1752749484618,29.76,176.04,176.03,5.95082484]
[1752749485111,29.76,176.04,176.02,5.27082484]
[1752749485112,0.06,176.04,176.02,5.27082484]
[1752749485504,29.7,176.03,176.02,5.27082484]
[1752749485700,29.7,176.03,176.02,5.95082484]
[1752749486101,29.7,176.03,176.01,5.27082484]
[1752749486302,29.7,176.03,176.01,5.95082484]
[1752749487126,29.7,176.03,176.02,5.95082484]
[1752749487324,0.06,176.04,176.02,5.95082484]
[1752749487627,0.1229388,176.07,176.03,7.60862484]
[1752749487810,0.1229388,176.07,176.06,5.27082484]
[1752749488194,0.1229388,176.07,176.06,5.95082484]
[1752749488423,0.1229388,176.07,176.06,0.68]
[1752749488629,0.1229388,176.07,176.06,5.95082484]
[1752749488925,0.1229388,176.07,176.06,0.68]
[1752749489222,0.1229388,176.07,176.06,11.63070669]
[1752749490516,0.1229388,176.07,176.06,5.95082484]
[1752749491024,0.1229388,176.07,176.04,5.95082484]
[1752749491025,0.1829388,176.07,176.04,5.95082484]
[1752749491234,5.86250903,176.07,176.04,5.95082484]
[1752749491521,0.1829388,176.07,176.05,5.27082484]
[1752749491829,0.1829388,176.07,176.05,5.95082484]
[1752749492817,0.1829388,176.07,176.06,5.27082484]
[1752749493020,0.1829388,176.07,176.06,5.95082484]
[1752749493234,0.1829388,176.07,176.06,5.27082484]
[1752749493440,0.1829388,176.07,176.05,5.27082484]
[1752749493742,5.86253765,176.07,176.05,5.27082484]
[1752749493922,0.1829388,176.07,176.05,5.27082484]
[1752749494522,0.1829388,176.07,176.06,5.27082484]
[1752749494837,0.1829388,176.07,176.05,5.95082484]
[1752749495940,0.1829388,176.07,176.06,5.95082484]
[1752749496144,0.1829388,176.07,176.05,5.27082484]
[1752749496731,0.1829388,176.07,176.06,5.27082484]
[1752749497123,0.1829388,176.07,176.06,5.96082484]
[1752749498325,0.1829388,176.07,176.06,0.69]
[1752749498838,0.1829388,176.07,176.06,5.96082484]
[1752749500513,0.1829388,176.07,176.06,11.64070669]
[1752749502533,0.1829388,176.07,176.06,54.42539066]
[1752749502734,20.0,176.1,176.09,32.6411]
[1752749503036,20.0,176.1,176.09,49.55166387]
[1752749503828,20.0,176.1,176.09,44.28083903]
[1752749506841,20.0,176.1,176.09,132.38083903]
[1752749507946,20.0,176.1,176.09,127.11001419]
[1752749508129,20.0,176.1,176.09,94.06082484]
[1752749509029,20.0,176.1,176.09,93.37082484]
[1752749509745,20.0,176.1,176.09,99.33164968]
[1752749509955,20.0,176.1,176.09,105.01056387]
[1752749510527,20.0,176.1,176.09,121.79524784]
[1752749510728,0.06,176.12,176.1,1.5839]
[1752749511040,0.06,176.12,176.11,22.05550881]
[1752749511236,0.06,176.15,176.13,6.6238]
[1752749511436,0.06,176.15,176.14,40.58812698]
[1752749511631,0.06,176.15,176.14,129.37812698]
[1752749512950,0.06,176.15,176.14,93.37082484]
[1752749513536,0.06,176.15,176.14,94.06082484]
[1752749515050,0.06,176.15,176.14,97.22345126]
[1752749515733,0.06,176.15,176.14,9.12345126]
[1752749516526,0.06,176.15,176.13,88.1]
[1752749516727,0.06,176.15,176.14,8.43345126]
[1752749518245,0.06,176.15,176.13,88.1]
[1752749518438,0.78,176.15,176.13,88.1]
[1752749519053,0.06,176.15,176.13,88.1]
[1752749519254,0.06,176.15,176.13,96.53345126]
[1752749519854,0.06,176.15,176.13,88.1]
[1752749520074,0.06,176.15,176.14,0.69]
[1752749520355,0.06,176.15,176.14,8.43345126]
[1752749521131,0.06,176.15,176.13,88.1]
[1752749521337,0.06,176.15,176.13,96.53345126]
[1752749521531,0.78,176.15,176.13,96.53345126]
[1752749521732,0.78,176.15,176.13,8.43345126]
[1752749522161,0.78,176.15,176.12,8.43345126]
[1752749522349,0.72,176.14,176.09,0.69]
[1752749522548,0.72,176.13,176.09,9.12345126]
[1752749522735,9.15345126,176.13,176.08,8.43345126]
[1752749522935,8.43345126,176.11,176.07,0.03]
[1752749523152,29.62,176.1,176.07,0.03]
[1752749523365,0.72,176.09,176.07,0.03]
[1752749523741,0.72,176.08,176.07,0.03]
[1752749524143,6.39923671,176.08,176.07,0.03]
[1752749527957,14.83268797,176.08,176.07,0.03]
[1752749528142,6.39923671,176.08,176.07,0.03]
[1752749529252,5.67901134,176.09,176.07,0.03]
[1752749529968,6.36901134,176.09,176.07,0.03]
[1752749530153,0.69,176.08,176.07,0.03]
[1752749530664,6.36923671,176.08,176.07,0.03]
[1752749531748,14.80268797,176.08,176.07,0.03]
[1752749531948,31.58737194,176.08,176.07,0.03]
[1752749533944,23.15392068,176.08,176.07,0.03]
[1752749534144,35.27923671,176.08,176.07,0.03]
[1752749534567,35.96923671,176.08,176.07,0.03]
[1752749534765,29.6,176.08,176.07,0.03]
[1752749535070,35.96923671,176.08,176.07,0.03]
[1752749536056,29.6,176.08,176.07,0.03]
[1752749536461,35.27923671,176.08,176.07,0.03]
[1752749537794,29.6,176.08,176.07,5.99731923]
[1752749538072,29.66,176.12,176.07,5.99731923]
[1752749538271,29.66,176.12,176.11,5.27731923]
[1752749539274,0.06,176.12,176.11,5.96731923]
[1752749539756,0.06,176.12,176.11,0.69]
[1752749539954,0.06,176.12,176.11,11.64558849]
[1752749540376,0.06,176.12,176.11,5.96731923]
[1752749542192,0.06,176.12,176.11,5.27731923]
[1752749542480,0.06,176.12,176.1,5.27731923]
[1752749542852,0.06,176.12,176.08,0.69]
[1752749543083,0.06,176.12,176.1,5.27731923]
[1752749543892,0.06,176.12,176.11,0.69]
[1752749544062,0.06,176.12,176.11,5.96731923]
[1752749544803,0.75,176.12,176.07,0.72]
[1752749544956,0.06,176.12,176.1,5.27731923]
[1752749545284,29.64,176.12,176.11,5.27731923]
[1752749546463,35.31794685,176.12,176.11,5.27731923]
[1752749547088,36.00794685,176.12,176.09,5.27731923]
[1752749547273,35.31794685,176.12,176.09,5.27731923]
[1752749547586,36.00794685,176.12,176.09,5.27731923]
[1752749547779,35.31794685,176.12,176.1,5.27731923]
[1752749549792,36.00794685,176.12,176.09,5.27731923]
[1752749550688,35.31794685,176.12,176.09,5.96731923]
[1752749551200,36.00794685,176.12,176.09,5.27731923]
[1752749551492,35.31794685,176.12,176.08,5.27731923]
[1752749551696,36.00794685,176.12,176.09,5.27731923]
[1752749553013,0.69,176.11,176.07,0.03]
[1752749553305,0.69,176.11,176.08,5.27731923]
[1752749553505,35.31794685,176.12,176.07,0.03]
[1752749553506,30.27,176.1,176.07,0.03]
[1752749553890,6.36891419,176.09,176.07,0.03]
[1752749554110,29.58,176.08,176.07,0.03]
[1752749554808,29.58,176.08,176.07,5.99731923]
[1752749555109,29.58,176.08,176.07,0.03]
[1752749555313,30.27,176.08,176.07,0.03]
[1752749555881,35.94923671,176.08,176.07,0.03]
[1752749556082,41.22655594,176.08,176.07,0.03]
[1752749557084,35.94923671,176.08,176.07,0.03]
[1752749557401,35.25923671,176.08,176.07,0.03]
[1752749557781,5.33731923,176.12,176.07,5.30731923]
[1752749557976,0.74,176.12,176.08,5.98731923]
[1752749558203,29.56,176.11,176.08,5.98731923]
[1752749558589,29.56,176.11,176.08,5.27731923]
[1752749558788,30.24,176.11,176.07,5.30731923]
[1752749558980,35.91831851,176.11,176.07,5.30731923]
[1752749560401,35.91831851,176.11,176.08,5.27731923]